Workbook

Sheet Început
B1: DESPRE ACEST ȘABLON
B2: Utilizați registrul de lucru Buget de eveniment pentru a urmări Cheltuieli efectuate și Venit obținute în urma unui eveniment.
B3: Completați numele evenimentului și introduceți detaliile în tabelele din foile de lucru Cheltuieli și Venit.
B4: Total cheltuieli și Venit total sunt calculate automat.
B5: Rezumatul pentru profit și pierderi și Diagrama sunt actualizate automat în foaia de lucru Rezumat.
B6: Notă:
B7: Găsiți instrucțiuni suplimentare în coloana A din fiecare foaie de lucru. Acest text a fost ascuns intenționat. Pentru a elimina textul, selectați coloana A, apoi DELETE. Pentru a reafișa textul, selectați coloana A, apoi schimbați culoarea de font.
B8: Pentru a afla mai multe despre tabele, apăsați SHIFT, apoi F10 într-un tabel, selectați opțiunea TABEL, apoi TEXT ALTERNATIV.

Sheet Cheltuieli
A1: Introduceți cheltuielile Estimate și Real pentru fiecare categorie în tabelele corespunzătoare din această foaie de lucru. Totalul cheltuielilor este calculat automat Găsiți instrucțiuni utile despre cum să utilizați această foaie de lucru în celulele din această coloană. Apăsați săgeata în jos pentru a începe.
A2: Introduceți Nume eveniment în celula din dreapta pentru a particulariza titlul acestei foi de lucru și al altora. | B2: Buget de eveniment pentru Nume eveniment
A3: Estimate Cheltuieli se află în celula G3. | G3: Cheltuieli
A4: Eticheta Estimate se află în celula G4 și eticheta Real în celula H4. | G4: Estimate | H4: Real
A5: Eticheta Total cheltuieli se află în celula din dreapta. Total cheltuieli estimate este calculat automat în celula G5. Total cheltuieli real și bara de date care reprezintă această valoare sunt actualizate automat în celula H5. Următoarele instrucțiuni se află în celula A7. | B5: Total cheltuieli | G5: =SUM(C12,C20,C26,C33,G12,G20,G25) -> 1,145.00 lei | H5: =SUM(D12,D20,D26,D33,H12,H20,H25) -> 395.00 lei
A7: Introduceți Cheltuieli Locație în tabel, începând cu celula din dreapta și Cheltuieli Protocol în tabel, începând cu celula F7. Următoarele instrucțiuni se află în celula A14. | B7: Locație | C7: Estimat | D7: Real | F7: Băuturi răcoritoare | G7: Estimat | H7: Real
B8: Taxe pentru sală | C8: 500.00 lei | D8: 250.00 lei | F8: Alimente
B9: Personalul locației | C9: 400.00 lei | D9: 50.00 lei | F9: Băuturi
B10: Echipament | F10: Articole din material textil
B11: Mese și scaune | F11: Personal și recompense
B12: Total | C12: =SUBTOTAL(109,CheltuieliLocație[Estimat]) -> 900.00 lei | D12: =SUBTOTAL(109,CheltuieliLocație[Real]) -> 300.00 lei | F12: Total | G12: =SUBTOTAL(109,CheltuieliProtocol[Estimat]) -> 0.00 lei | H12: =SUBTOTAL(109,CheltuieliProtocol[Real]) -> 0.00 lei
A14: Introduceți Cheltuieli Decorațiuni în tabel, începând cu celula din dreapta și Cheltuieli Program în tabel, începând cu celula F14. Următoarele instrucțiuni se află în celula A22. | B14: Decorațiuni | C14: Estimat | D14: Real | F14: Program | G14: Estimat | H14: Real
B15: Flori | C15: 200.00 lei | D15: 50.00 lei | F15: Divertisment
B16: Lumânări | F16: Vorbitori
B17: Iluminare | F17: Călătorii
B18: Baloane | F18: Hotel
B19: Consumabile din hârtie | F19: Altele
B20: Total | C20: =SUBTOTAL(109,CheltuieliDecorațiuni[Estimat]) -> 200.00 lei | D20: =SUBTOTAL(109,CheltuieliDecorațiuni[Real]) -> 50.00 lei | F20: Total | G20: =SUBTOTAL(109,CheltuieliProgram[Estimat]) -> 0.00 lei | H20: =SUBTOTAL(109,CheltuieliProgram[Real]) -> 0.00 lei
A22: Introduceți Cheltuieli Publicitate în tabel, începând cu celula din dreapta și Cheltuieli Premii în tabel, începând cu celula F22. Următoarele instrucțiuni se află în celula A28. | B22: Publicitate | C22: Estimat | D22: Real | F22: Premii | G22: Estimat | H22: Reale
B23: Grafică | C23: 45.00 lei | D23: 45.00 lei | F23: Panglici/plachete/trofee
B24: Fotocopiere/imprimare | F24: Cadouri
B25: Cheltuieli cu poșta | F25: Total | G25: =SUBTOTAL(109,CheltuieliPremii[Estimat]) -> 0.00 lei | H25: =SUBTOTAL(109,CheltuieliPremii[Reale]) -> 0.00 lei
B26: Total | C26: =SUBTOTAL(109,CheltuieliPublicitate[Estimat]) -> 45.00 lei | D26: =SUBTOTAL(109,CheltuieliPublicitate[Real]) -> 45.00 lei
A28: Introduceți Cheltuieli Diverse în tabel, începând cu celula din dreapta. | B28: Diverse | C28: Estimat | D28: Real
B29: Telefon
B30: Transport
B31: Foi de scris
B32: Servicii fax
B33: Total | C33: =SUBTOTAL(109,CheltuieliDiverse[Estimat]) -> 0.00 lei | D33: =SUBTOTAL(109,CheltuieliDiverse[Real]) -> 0.00 lei

Sheet Venit
A1: Introduceți veniturile Estimat și Real pentru fiecare categorie în tabelele corespunzătoare din această foaie de lucru. Venitul total se calculează automat. Găsiți instrucțiuni utile despre cum să utilizați această foaie de lucru în celulele din această coloană. Apăsați săgeata în jos pentru a începe.
A2: Numele evenimentului se actualizează automat în celula din dreapta. | B2: =Cheltuieli!B2 -> Buget de eveniment pentru Nume eveniment
A3: Eticheta Venit se află în celula F3. | F3: Venit
A4: Eticheta Estimat se află în celula F4 și eticheta Real în celula G4. | F4: Estimat | G4: Real
A5: Eticheta Venit total se află în celula din dreapta. Venitul total estimat este calculat automat în celula F5. Venitul total real și bara de date care reprezintă această valoare sunt actualizate automat în celula G5. | B5: Venit total | F5: =SUM(Intrări[[#Totals],[Total estimat]],AnunțuriÎnProgram[[#Totals],[Total estimat]],ExpozanțiȘiVânzători[[#Totals],[Total estimat]],VânzareArticol[[#Totals],[Total estimat]]) -> 1,936.00 lei | G5: =SUM(Intrări[[#Totals],[Total real]],AnunțuriÎnProgram[[#Totals],[Total real]],ExpozanțiȘiVânzători[[#Totals],[Total real]],VânzareArticol[[#Totals],[Total real]]) -> 1,831.00 lei
A6: Eticheta Intrări se află în celula din dreapta. | B6: Intrări
A7: Introduceți numărul estimat și numărul real de intrări împreună cu prețul biletelor în tabel, începând cu celula din dreapta. Venitul estimat și venitul real din intrări se calculează automat. Următoarele instrucțiuni se află în celula A12. | B7: Estimat | C7: Real | D7: Tip | E7: Preț | F7: Total estimat | G7: Total real
B8: 300 | C8: 278 | D8: Adulți | E8: 5.00 lei | F8: =B8*E8 -> 1,500.00 lei | G8: =C8*E8 -> 1,390.00 lei
B9: 197 | C9: 195 | D9: Copii | E9: 2.00 lei | F9: =B9*E9 -> 394.00 lei | G9: =C9*E9 -> 390.00 lei
B10: 42 | C10: 51 | D10: Altele | E10: 1.00 lei | F10: 42.00 lei | G10: 51.00 lei
F11: =SUBTOTAL(109,Intrări[Total estimat]) -> 1,936.00 lei | G11: =SUBTOTAL(109,Intrări[Total real]) -> 1,831.00 lei
A12: Eticheta Reclame în cadrul programului se află în celula din dreapta. | B12: Reclame în cadrul programului
A13: Introduceți numărul estimat și numărul real de reclame în cadrul programului și tarifele pentru anunțuri în tabel, începând cu celula din dreapta. Venitul estimat și venitul real din reclame se calculează automat. Următoarele instrucțiuni se află în celula A18. | B13: Estimate | C13: Real | D13: Tip | E13: Preț | F13: Total estimat | G13: Total real
D14: Coperți | F14: =B14*E14 -> 0.00 lei | G14: =C14*E14 -> 0.00 lei
D15: Jumătăți de pagină | F15: =B15*E15 -> 0.00 lei | G15: =C15*E15 -> 0.00 lei
D16: Sferturi de pagină | F16: 0.00 lei | G16: 0.00 lei
F17: =SUBTOTAL(109,AnunțuriÎnProgram[Total estimat]) -> 0.00 lei | G17: =SUBTOTAL(109,AnunțuriÎnProgram[Total real]) -> 0.00 lei
A18: Eticheta Expozanți sau Furnizori se află în celula din dreapta. | B18: Expozanți/furnizori
A19: Introduceți numărul estimat și numărul real de expozanți și de furnizori și tarifele pentru standuri în tabel, începând cu celula din dreapta. Venitul estimat și venitul real se calculează automat. Următoarele instrucțiuni se află în celula A24. | B19: Estimați | C19: Real | D19: Tip | E19: Preț | F19: Total estimat | G19: Total real
D20: Standuri mari | F20: =B20*E20 -> 0.00 lei | G20: =C20*E20 -> 0.00 lei
D21: Standuri medii | F21: =B21*E21 -> 0.00 lei | G21: =C21*E21 -> 0.00 lei
D22: Standuri mici | F22: 0.00 lei | G22: 0.00 lei
F23: =SUBTOTAL(109,ExpozanțiȘiVânzători[Total estimat]) -> 0.00 lei | G23: =SUBTOTAL(109,ExpozanțiȘiVânzători[Total real]) -> 0.00 lei
A24: Eticheta Vânzare de articole se află în celula din dreapta. | B24: Vânzare de articole
A25: Introduceți numărul estimat și numărul real de articole vândute și prețurile articolelor în tabel, începând cu celula din dreapta. Venitul estimat și venitul real se calculează automat. | B25: Estimată | C25: Reală | D25: Tip | E25: Preț | F25: Total estimat | G25: Total real
D26: Articole | F26: =B26*E26 -> 0.00 lei | G26: =C26*E26 -> 0.00 lei
D27: Articole | F27: =B27*E27 -> 0.00 lei | G27: =C27*E27 -> 0.00 lei
D28: Articole | F28: 0.00 lei | G28: 0.00 lei
D29: Articole | F29: 0.00 lei | G29: 0.00 lei
F30: =SUBTOTAL(109,VânzareArticol[Total estimat]) -> 0.00 lei | G30: =SUBTOTAL(109,VânzareArticol[Total real]) -> 0.00 lei

Sheet Rezumat
A1: Rezumatul profiturilor și pierderilor și diagrama care arată venitul și cheltuielile totale se actualizează automat în această foaie de lucru. Găsiți instrucțiuni utile despre cum să utilizați această foaie de lucru în celulele din această coloană. Apăsați săgeata în jos pentru a începe.
A2: Nume eveniment se actualizează automat în celula din dreapta. | B2: =Cheltuieli!B2 -> Buget de eveniment pentru Nume eveniment
A3: Eticheta Rezumat profit/pierderi se află în celula C3. Următoarele instrucțiuni se află în celula A5. | C3: Rezumat profit/pierderi
A5: Tabelul Total care începe de la celula din dreapta se actualizează automat. Următoarele instrucțiuni se află în celula A9. | B5: Total | C5: Estimat | D5: Real
B6: Venit total | C6: =Venit!F5 -> 1,936.00 lei | D6: =Venit!G5 -> 1,831.00 lei
B7: Total cheltuieli | C7: =Cheltuieli!G5 -> 1,145.00 lei | D7: =Cheltuieli!H5 -> 395.00 lei
B8: Profit total (sau pierderi totale) | C8: =C6-C7 -> 791.00 lei | D8: =D6-D7 -> 1,436.00 lei
A9: Diagrama coloană grupată care compară venitul total estimat cu cel real și cheltuielile total cheltuieli cu cele reale se află în celula din dreapta. | B9: Diagrama coloană grupată care compară venitul total estimat cu cel real și cheltuielile total cheltuieli cu cele reale se află în această celulă.
